Cogmind - Beta 14 @@@ ROGUE MODE // 2024.11.10 @ 18:45:46 Player: Fangrelle Result: Destroyed by YI-UF0 with YI-UF0's Doublenader Performance ------------- Evolutions (0) 0 Regions Visited (2) 400 Robots Destroyed (19) 95 Value Destroyed (519) 519 Prototype IDs (0) 0 Alien Tech Used (0) 0 Bonus (0) 0 TOTAL SCORE: 1014 Bonus ------- None Cogmind --------- Core Integrity 0/250 Matter 260/300 Energy 248/250 System Corruption 0% Temperature Cool (0) Movement Rolling (120) Ox2 Location -10/Mines Parts ------- > --- POWER (1) -------- Ion Engine > --- PROPULSION (2) --- Armored Wheel Armored Wheel > --- UTILITY (2) ------ High-capacity Storage Unit Tractor Beam > --- WEAPON (2) ------- Light Cannon Rocket Launcher > --- INVENTORY (20) --- Ion Engine Ion Engine Ion Engine Light Nuclear Core Light Treads Armored Wheel Armored Wheel Improved Heat Sink Improved Heat Sink Small Storage Unit High-capacity Battery (250) High-capacity Matter Pod (136) Particle Gun Assault Rifle Grenade Launcher Rocket Launcher Rocket Launcher Rocket Launcher Datajack Mining Claw Peak State ------------ > --- POWER ------------ Ion Engine > --- PROPULSION ------- Armored Wheel Armored Wheel > --- UTILITY ---------- High-capacity Storage Unit Tractor Beam > --- WEAPON ----------- Light Cannon Rocket Launcher > --- INVENTORY -------- Ion Engine Ion Engine Ion Engine Light Nuclear Core Light Treads Armored Wheel Armored Wheel Improved Heat Sink Improved Heat Sink Small Storage Unit High-capacity Battery High-capacity Matter Pod Signal Interpreter ECM Suite Particle Gun Assault Rifle Grenade Launcher Rocket Launcher Datajack Mining Claw [Rating: 13] Favorites ----------- Power Ion Engine Engine Ion Engine Propulsion Light Treads Treads Light Treads Leg Aluminum Leg Wheel Wheel Utility High-capacity Storage Unit Device Tractor Beam Storage High-capacity Storage Unit Weapon Particle Gun Energy Gun Particle Gun Ballistic Gun Assault Rifle Ballistic Cannon Light Cannon Launcher Rocket Launcher Build | -11 -10 -10 ------- Run | Yrd Mat Min Slots Evolved . | . . . Power . | . . . Propulsion . | . . . Utility . | . . . Weapon . | . . . Parts Attached 21 | 3 18 . Power . | . . . Engine . | . . . Core . | . . . Reactor . | . . . Propulsion 6 | 2 4 . Treads 3 | 2 1 . Leg . | . . . Wheel 3 | . 3 . Hover . | . . . Flight . | . . . Utility 3 | . 3 . Device 2 | . 2 . Storage 1 | . 1 . Processor . | . . . Hackware . | . . . Protection . | . . . Artifact . | . . . Weapon 12 | 1 11 . Energy Gun 4 | . 4 . Energy Cannon . | . . . Ballistic Gun 4 | 1 3 . Ballistic Cannon 2 | . 2 . Launcher 2 | . 2 . Special Weapon . | . . . Impact Weapon . | . . . Slashing Weapon . | . . . Piercing Weapon . | . . . Special Melee Weapon . | . . . Unidentified Prototypes . | . . . Parts Lost 3 | . 3 . Power . | . . . Propulsion 1 | . 1 . Utility . | . . . Weapon 2 | . 2 . Highest Loss Streak 2 | . 2 . To Critical Strikes . | . . . Average Slot Usage (%) 90 | . 90 100 Engine 14 | . 14 14 Treads 16 | . 16 . Wheel 4 | . 4 28 Device 12 | . 12 14 Storage 14 | . 14 14 Energy Gun 12 | . 12 . Ballistic Gun 7 | . 8 . Ballistic Cannon 7 | . 7 14 Peak Build Rating 13 | 6 13 13 Average Rating 9 | 6 9 13 On Entrance 8 | 6 6 13 Naked Turns . | . . . Heaviest Build 53 | 14 53 53 Greatest Support 40 | 40 40 24 Greatest Overweight (x) 16 | . 16 2 Average Overweight (x) 1 | . 1 2 Largest Inventory Capacity 20 | 8 20 20 Average Capacity 18 | 8 18 20 Most Carried 20 | 6 20 20 Average Carried 16 | 5 16 20 Final Capacity 20 | 8 20 20 Final Carried 20 | 4 20 20 Class Distribution -------------------- 100% | Mutant Dominant Class ---------------- Mutant | -10/Materials Mutant | -10/Mines Resources | -11 -10 -10 ----------- Run | Yrd Mat Min Matter Collected 815 | 199 616 . Remotely 336 | . 336 . Salvage Created 597 | . 597 . Parts 49 | . 49 . Haulers Intercepted 1 | . 1 . Recyclers Shooed . | . . . Parts Field Recycled . | . . . Retrieved Matter . | . . . Parts Self-Destructed . | . . . Prevented . | . . . Kills | -11 -10 -10 ------- Run | Yrd Mat Min Combat Hostiles Destroyed 13 | . 13 . Guns 11 | . 11 . Cannons 2 | . 2 . Classes Destroyed 6 | . 6 . Worker 1 | . 1 . Hauler 1 | . 1 . Operator 1 | . 1 . Watcher 3 | . 3 . Swarmer 3 | . 3 . Grunt 10 | . 10 . Best Kill Streak 2 | . 2 . Combat Bots Only 2 | . 2 . Max Kills in Single Turn 1 | . 1 . Gunslinging . | . . . Exploded . | . . . Melee . | . . . Uniques/NPCs Destroyed . | . . . Combat | -11 -10 -10 -------- Run | Yrd Mat Min Hostile Shots Fired 91 | . 86 5 Missed 24 | . 23 1 Damage Taken 988 | . 854 134 Core 266 | . 190 76 Absorbed by Shields . | . . . Core Remaining (%) 100 | 100 . . Volleys Fired 71 | . 71 . Largest 2 | . 2 . Hottest 130 | . 130 . Shots Fired 140 | . 140 . Gun 123 | . 123 . Cannon 15 | . 15 . Launcher 2 | . 2 . Special . | . . . Kinetic 84 | . 84 . Thermal 44 | . 44 . Explosive 2 | . 2 . Electromagnetic 10 | . 10 . Robot Hit Streak 12 | . 12 . Robot Miss Streak 6 | . 6 . Penetration Max . | . . . Secondary Targets 2 | . 2 . Max Gunslinging Chain 1 | . 1 . Shots Hit Robots 83 | . 83 . Core Hits 32 | . 32 . Critical Kills . | . . . Critical Parts Destroyed . | . . . Critical Strikes 2 | . 2 . Burn 2 | . 2 . Melee Attacks . | . . . Impact . | . . . Slashing . | . . . Piercing . | . . . Sneak Attacks . | . . . Combat Hostiles . | . . . Follow-up Attacks . | . . . Damage Inflicted 1195 | . 1195 . Guns 1046 | . 1046 . Cannons 126 | . 126 . Explosions 20 | . 20 . Melee . | . . . Ramming 3 | . 3 . Kinetic 701 | . 701 . Thermal 411 | . 411 . Explosive . | . . . Electromagnetic 80 | . 80 . Impact . | . . . Slashing . | . . . Piercing . | . . . Highest Corruption . | . . . Average Corruption . | . . . Corruption Purged . | . . . Corruption Blocked . | . . . Overload Shots . | . . . Overflow Damage . | . . . Projectiles . | . . . Explosions . | . . . Melee . | . . . Knockbacks 2 | . 2 . Impact . | . . . Kinetic 2 | . 2 . Secondary . | . . . Self-Inflicted Damage . | . . . Shots . | . . . Rammed 1 | . 1 . Targets Rammed 1 | . 1 . Kicked . | . . . Crushed . | . . . Highest Temperature 517 | . 517 . Average Temperature 142 | . 142 . Received Heat Transfer 480 | . 453 27 Effects 4 | . 4 . Shutdowns 2 | . 2 . Matter Decay 1 | . 1 . Damage (core) 1 | . 1 . Siege Activations . | . . . Robots Corrupted . | . . . Combat Hostiles . | . . . Parts Fried . | . . . Impact Corruptions . | . . . Robots Melted . | . . . Combat Hostiles . | . . . Parts Melted 1 | . 1 . Heat Transferred 1160 | . 1160 . Parts Sabotaged . | . . . Parts Stolen . | . . . Parts Stripped . | . . . Power Chain Reactions 1 | . 1 . Alert | -11 -10 -10 ------- Run | Yrd Mat Min Peak Influence 214 | . 214 . Initial . | . . . Average 34 | . 35 . Maximum Alert Level 1 | . 1 . Low Security (%) 98 | 100 98 100 Level 1 1 | . 1 . Level 2 . | . . . Level 3 . | . . . Level 4 . | . . . Level 5 . | . . . High Security . | . . . Max Security . | . . . Squads Dispatched 2 | . 2 . Investigation 1 | . 1 . Extermination . | . . . Reinforcement 1 | . 1 . Assault . | . . . Garrison . | . . . Intercept . | . . . Searches Triggered . | . . . Construction Impeded . | . . . Haulers Reinforced . | . . . Active Scanning Responses . | . . . Cargo Convoy Interrupts . | . . . Stealth | -11 -10 -10 --------- Run | Yrd Mat Min Distress Signals 1 | . 1 . Communications Jammed . | . . . Distress Signals . | . . . Times Spotted 26 | . 23 3 Peak Tracking Total 5 | . 5 2 Tactical Retreats 1 | . 1 . Traps | -11 -10 -10 ------- Run | Yrd Mat Min Traps Triggered . | . . . Indirectly . | . . . Trap Hack Attempts . | . . . Triggered . | . . . Disarmed . | . . . Reprogrammed . | . . . Reused . | . . . Traps Extracted . | . . . Installed . | . . . Triggered . | . . . Machines | -11 -10 -10 ---------- Run | Yrd Mat Min Machines Disabled 3 | . 3 . Max in Single Turn 1 | . 1 . Machines Repaired . | . . . Machines Dismantled . | . . . Machines Sabotaged . | . . . Overloaded Fab Kills . | . . . Hacking | -11 -10 -10 --------- Run | Yrd Mat Min Machines Accessed 7 | . 7 . Terminals 6 | . 6 . Fabricators . | . . . Repair Stations . | . . . Recycling Units 1 | . 1 . Scanalyzers . | . . . Garrison Access . | . . . Total Hacks 18 | . 18 . Successful 10 | . 10 . Failed 8 | . 8 . Catastrophic 2 | . 2 . Database Lockouts . | . . . Manual 18 | . 18 . Terminals 17 | . 17 . Fabricators . | . . . Repair Stations . | . . . Recycling Units 1 | . 1 . Scanalyzers . | . . . Garrison Access . | . . . Terminal Hacks 3 | . 3 . Robot Analysis 2 | . 2 . Hauler Manifests 1 | . 1 . Fabricator Hacks . | . . . Repair Station Hacks . | . . . Recycling Unit Hacks . | . . . Scanalyzer . | . . . Garrison Access Hacks . | . . . Unauthorized Hacks 7 | . 7 . Terminals 6 | . 6 . Botnet 5 | . 5 . Operators 1 | . 1 . Fabricators . | . . . Repair Stations . | . . . Recycling Units 1 | . 1 . Tunnel 1 | . 1 . Scanalyzers . | . . . Garrison Access . | . . . Data Cores Recovered . | . . . Used . | . . . Hacking Detections 6 | . 6 . Full Trace Events 2 | . 2 . Feedback Events . | . . . Feedback Blocked . | . . . Robot Schematics Acquired . | . . . Robots Built . | . . . Authchips . | . . . Time . | . . . Total Robot Build Rating . | . . . Part Schematics Acquired . | . . . Parts Built . | . . . Authchips . | . . . Time . | . . . Total Part Build Rating . | . . . Parts Repaired . | . . . Time . | . . . Parts Recycled . | . . . Recycled Matter . | . . . Retrieved Matter . | . . . Retrieved Components . | . . . Parts Scanalyzed . | . . . Part Schematics Acquired . | . . . Parts Damaged . | . . . Bothacking | -11 -10 -10 ------------ Run | Yrd Mat Min Used RIF Installer . | . . . Robots Hacked . | . . . Non-combat . | . . . Combat . | . . . Robot Hacks Applied . | . . . Relay Couplers Released . | . . . Fabnet Peak Effective % . | . . . Robots Rewired . | . . . Allies Hacked . | . . . Hacks Repelled . | . . . Allies | -11 -10 -10 -------- Run | Yrd Mat Min Total Allies . | . . . Largest Group . | . . . Highest-Rated Group . | . . . Highest-Rated Ally . | . . . Total Orders . | . . . Ally Attacks . | . . . Total Damage . | . . . Kills . | . . . Allies Corrupted . | . . . Allies Melted . | . . . Intel | -11 -10 -10 ------- Run | Yrd Mat Min Robot Analysis Total 2 | . 2 . Derelict Logs Recovered . | . . . Drone Launches . | . . . Drone Recoveries . | . . . Exploration | -11 -10 -10 ------------- Run | Yrd Mat Min Turns Passed 2866 | 6 2803 57 Spaces Moved 978 | 1 929 48 Core 5 | . 5 . Treads 853 | 1 852 . Legs . | . . . Wheels 120 | . 72 48 Hover . | . . . Flight . | . . . Fastest Speed 120 | 160 120 120 Average Speed 262 | 160 269 120 Slowest Speed 850 | 160 850 120 Overloaded Moves . | . . . Propulsion Burnouts . | . . . Robots Hopped . | . . . Cave-ins Triggered . | . . . Exploration Rate (%) 34 | 1 91 12 Regions Visited 2 Branch Regions 1 Pre-discovered Areas 1 | . 1 . Known Exits Taken . | . . . Unknown Exits Taken 2 | 1 1 . Scrap Searched . | . . . Spaces Dug 6 | . 6 . Terrain Destroyed 14 | . 14 . Melee . | . . . Projectile . | . . . AOE 14 | . 14 . Terrain Rammed . | . . . Walls Destroyed . | . . . Machines Disabled . | . . . Actions | -11 -10 -10 --------- Run | Yrd Mat Min Total 1143 | 5 1090 48 Wait 24 | . 24 . Move 976 | . 928 48 Hop . | . . . Pick Up 30 | . 30 . Fast Attach 4 | . 4 . Attach 5 | . 5 . Detach 2 | . 2 . Swap 12 | 3 9 . Drop 18 | 2 16 . Fire 71 | . 71 . Melee . | . . . Ram . | . . . Kick . | . . . Crush 1 | . 1 . Escape Stasis . | . . . Rewire . | . . . Trap . | . . . Miscellaneous . | . . . Route ------- -11/Scrapyard -10/Materials (discovered 4 exits: [*Mat x2] / [*Min x2]) -10/Mines History --------- Turn | Location | Event 7 | -11/Scrapyard | Discovered new exit (range 0) 7 | -11/Scrapyard | Entered Materials 299 | -10/Materials | Discovered new exit (range 7) 316 | -10/Materials | Build established: Mutant 1002 | -10/Materials | Discovered new exit (range 10) 1963 | -10/Materials | Core integrity fell below 50% 2112 | -10/Materials | Discovered new exit (range 5) 2433 | -10/Materials | Discovered new exit (range 15) 2810 | -10/Materials | Entered Mines 2816 | -10/Mines | YI-UF0 nonchalantly dropped a Grenade Launcher on the ground 2854 | -10/Mines | Core integrity fell below 20% 2867 | -10/Mines | Destroyed by YI-UF0 with YI-UF0's Doublenader Last Messages --------------- 02723_ Acquired Rocket Launcher. 02725_ Dropped Assault Rifle. 02726_ Dropped Particle Gun. 02727_ Acquired Assault Rifle. 02730_ Acquired Rocket Launcher. 02735_ Dropped Signal Interpreter. 02735_ Dropped ECM Suite. 02741_ Acquired Rocket Launcher. LOCATION=UNKNOWN GOAL=ESCAPE Something is scanning the area. 02811_ A crazy derelict wanders into view. 02816_ YI-UF0 nonchalantly drops a Grenade Launcher on the ground. 02820_ YI-UF0 mumbles something. 02858_ YI-UF0: "Whaaaaaaaa!" 02859_ T-07 Excavator destroyed. 02860_ T-07 Excavator is excavating. 02861_ G-34 Mercenary destroyed. 02863_ G-47 Trooper destroyed. 02865_ T-07 Excavator destroyed. Map ----- +----------------------------------------------------+ | ??????????????????????????????????????? | | ??????????????????????????????????????? | | ??????????????????????????????????????? | | ??????????????????????????????????????? | | ??????????????????????????????????????? | | ?????????????? ??????????????????????? | | ???????????? ??????????????????????? | | ????????????# #?????????????????????? | | ????????????# #????????????????????? | | ????????????? ????????????????????? | | ????????????? ????????????????????? | | ?????????????# ???????????????????? | | ?????????????# ??????????????????? | | ?????????????? ??????????????????? | | ?????????????? = ???????????????????? | | ??????????????# % ???????????????????? | | ???????#??????# ##??????????????????? | | ???????# #????# #####??????????????? | | ????#### ??## ##?????????????? | | ???## ## [ ###???????????? | | ???# % =% #?????????? | | ???????# ##????????????? | | ???????#### #?????????????? | | ??????????#### | ##?????????????? | | ????????###### = #?????????????? | | ????????# @# * #?????????????? | | ????????# t #???????????????? | | ????????####### #????????????????? | | ???????????#### g ###????????????????? | | ????????#### #??????????????????? | | ???????## #??????????????????? | | ???????# ######??????????????????? | | ???????# #???????????????????????? | | ??????## ##???????????????????????? | | ?????## ###????????????????????????? | | ?????# ##??????????????????????????? | | ?????# #???????????????????????????? | | ?????# ] #???????????????????????????? | | ????## #???????????????????????????? | | ????# ##???????????????????????????? | | ???# ###????????????????????????????? | | ???## #???????????????????????????????? | | ????##????????????????????????????????? | | ??????????????????????????????????????? | | ??????????????????????????????????????? | | ??????????????????????????????????????? | | ??????????????????????????????????????? | | ??????????????????????????????????????? | | ??????????????????????????????????????? | | ??????????????????????????????????????? | +----------------------------------------------------+ Best States ------------- Heat Dissipation 39 Energy Generation 10 Energy Capacity 250 Matter Stores 300 Matter Capacity 300 Sight Range 16 Terrain Scan Density 10 Evasion (%) 40 Recoil Reduction 2 Item Schematics ----------------- None Robot Schematics ------------------ None Fabricated ------------ Nothing Alien Tech Used ----------------- None Achievements -------------- None Challenges ------------ None Game ------ Seed MobileGuidedModule Manual? 0 Play Time 00:13:08 Cumulative 47.2 hours Start 2024.11.10 @ 18:33:07 End 2024.11.10 @ 18:45:46 Sessions 1 Manual Loads 0 Difficulty Rogue Special Mode None Game No. 92 Rogue 92 Adventurer 0 Explorer 0 Win Type - Total 0 Types 0/0/0/0/0/0/0/0/0 Lore% 36 Gallery% 30 Achievement% 32 Wizard Run 0 Options --------- Layout 0 ASCII 0 Keyboard 0 Movement Mouse Keybinds 0 Fullscreen 1 Font 24/Smallcaps Map View 91x25 Zoom Use 97% Tactical HUD 1 Map Filters NONE Filters NONE Steam 1 RUN: a2a37bea-97a9-43ea-b643-46608732bd1e